[Event "Romanian Rapid Open 2022"]
[Site "Sebes"]
[Date "2022.12.02"]
[Round "6.35"]
[White "Hoanca, Alexia-Ioana"]
[Black "Negrean, Andrei"]
[Result "0-1"]
[ECO "B31"]
[WhiteElo "1644"]
[BlackElo "1991"]
[Annotator "TA"]
[PlyCount "207"]
[EventDate "2022.12.02"]
[EventType "rapid"]
[EventCountry "ROU"]
[SourceTitle "playchess.com"]
[Source "ChessBase"]
[SourceQuality "1"]
[TimeControl "600+5"]

{[%evp 13,207,-17,-14,-43,-29,-34,-20,-28,-15,-12,-8,-2,0,-10,0,-41,14,14,16,8,12,-52,-23,-23,-9,-46,-45,-47,-51,-55,-59,-94,-25,-31,-34,-39,-38,-40,-45,-60,-35,-39,12,13,14,12,51,0,2,2,2,2,5,0,13,0,28,30,31,58,81,69,103,90,103,79,100,44,119,8,57,44,94,94,94,94,184,77,77,62,81,53,202,122,133,62,110,105,90,0,0,0,0,0,0,0,4,4,4,4,8,0,0,0,8,0,35,0,0,0,4,0,0,0,0,0,0,0,0,0,0,0,0,0,0,0,0,0,0,0,0,-7,-7,-7,0,-7,-7,-7,-7,-7,-7,-7,-7,-7,-7,-7,-7,-8,-8,-8,-8,-8,-8,-8,-8,-8,-8,-125,-125,-29968,-29970,-29969,-29969,-29970,-29970,-29969,-125,-29973,-29974,-29974,-29975,-29975,-29976,-29976,-29977,-29981,-29976,-29977,-29978,-29978,-29979,-29982,-29983,-29985,-29985,-29985,-29985,-29985,-29986,-29986,-29986,-29986,-29987,-29987,-29988,-29994]} 1. e4 {[%emt 0:00:01]} c5 {[%emt 0:00:01]} 2. Nf3 {[%emt 0:00:02]} Nc6 {[%emt 0:00:01]} 3. Bb5 {[%emt 0:00:01]} g6 {[%emt 0:00:02]} 4. c3 {[%emt 0:00:04]} Nf6 {[%emt 0:00:27]} 5. Qe2 {[%emt 0:00:02]} Bg7 {[%emt 0:00:24]} 6. O-O {[%emt 0:00:03]} O-O {[%emt 0:00:08]} 7. e5 {[%emt 0:00:47]} Nd5 {[%emt 0:00:21]} 8. d4 {[%emt 0:00:05] B31: Sicilian: 2...Nc6 3 Bb5 g6.} cxd4 {[%emt 0:00:20]} 9. cxd4 {[%emt 0:00:02]} d6 {[%emt 0:00:19]} 10. Nc3 {[%emt 0:00:18] The position is equal.} Nxc3 {[%emt 0:01:45]} (10... Be6 {seems wilder.} 11. Bxc6 bxc6 12. Ng5 Qd7) 11. bxc3 {[%emt 0:00:01] [#]} dxe5 $146 {[%emt 0:00:09]} ({Predecessor:} 11... Bg4 12. exd6 exd6 13. h3 Re8 14. Be3 Bd7 15. a4 Rc8 16. a5 Ne7 17. Ra3 Nf5 18. Re1 Bh6 19. Bxd7 Qxd7 {0-1 (48) Sonntag,H (2133)-Woellermann,J (2230) Germany 2014}) 12. Bxc6 {[%emt 0:00:04]} bxc6 {[%emt 0:00:15]} 13. Nxe5 {[%emt 0:00:03]} Qd5 {[%emt 0:02:10]} 14. Bf4 {[%emt 0:02:51]} Be6 {[%emt 0:01:12]} (14... c5 $15) 15. Rfd1 $11 {[%emt 0:00:18]} Rac8 {[%emt 0:00:45]} 16. c4 {[%emt 0:00:25]} Qa5 {[%emt 0:00:12]} 17. Nf3 {[%emt 0:00:49]} (17. h3 $11) 17... Qa6 {[%emt 0:00:30]} 18. Rac1 {[%emt 0:00:17]} Bg4 {[%emt 0:00:46]} 19. h3 {[%emt 0:00:02]} (19. Qxe7 {is more complex.} Rfe8 20. Qh4 Bxf3 21. gxf3 Qxa2 22. Kg2) 19... Bxf3 {[%emt 0:00:05]} 20. Qxf3 {[%emt 0:00:02]} Qxa2 {[%emt 0:00:14]} 21. Qe3 {[%emt 0:00:25]} e6 {[%emt 0:00:22]} 22. Rd3 {[%emt 0:00:35]} Qa6 {[%emt 0:00:31]} (22... Rfd8 $17 23. Ra3 Qb2) 23. h4 {[%emt 0:00:21][%cal Oh4h5]} h5 {[%emt 0:00:16]} 24. Bh6 {[%emt 0:00:55]} Qb7 {[%emt 0:00:31]} 25. Bxg7 {[%emt 0:00:11]} Kxg7 {[%emt 0:00:02]} 26. Qe5+ {[%emt 0:00:01]} Kg8 {[%emt 0:00:09]} 27. Rg3 {[%emt 0:00:22]} Qe7 {[%emt 0:00:10]} (27... Kh7 $15) 28. Qxh5 {[%emt 0:00:24]} Qf6 {[%emt 0:00:08][%cal Of6f4]} (28... Kg7 {feels hotter.} 29. Ra1 Rcd8 30. Rg4 Rd7) 29. Qg4 {[%emt 0:00:10]} (29. Qh6 {keeps more tension.} Rfd8 30. h5 Rxd4 31. hxg6 Rh4 32. gxf7+ Kxf7 33. Qxf6+ Kxf6 34. Rf3+) 29... Rcd8 {[%emt 0:00:04]} 30. Rd3 {[%emt 0:00:16]} (30. Rd1 $14) 30... Qf5 {[%emt 0:00:07]} 31. Qxf5 {[%emt 0:00:09]} exf5 {[%emt 0:00:02][%mdl 4096] Endgame KRR-KRR} 32. Ra1 {[%emt 0:00:03]} Rd7 {[%emt 0:00:02]} 33. Ra6 {[%emt 0:00:02]} Rc8 {[%emt 0:00:08]} 34. Kf1 {[%emt 0:00:09]} Kg7 {[%emt 0:00:07]} 35. Ke2 {[%emt 0:00:06]} Rcd8 {[%emt 0:00:15]} 36. Ke3 {[%emt 0:01:21]} Re8+ {[%emt 0:00:00]} 37. Kd2 $1 {[%emt 0:00:01]} Rc8 {[%emt 0:00:03]} 38. Kc3 {[%emt 0:00:05]} Re7 {[%emt 0:00:02]} 39. Re3 {[%emt 0:00:28]} Rb7 {[%emt 0:00:04]} 40. Re2 {[%emt 0:00:44]} (40. c5 $16) 40... Rcb8 {[%emt 0:00:06] [#]} (40... c5 $14) 41. Ra3 {[%emt 0:00:11]} (41. Rxc6 $6 Rb3+ 42. Kd2 Rb2+ 43. Ke1 Rb1+ 44. Kd2 R1b2+ 45. Ke1 Rb1+ 46. Kd2 R1b2+ $11) (41. Rea2 $1 $16) 41... a5 {[%emt 0:00:04]} (41... Rb1 $11 {was preferrable.}) 42. Rea2 $1 $14 {[%emt 0:00:02]} ({But not} 42. Rxa5 Rb3+ 43. Kd2 Rb2+ 44. Ke1 Rb1+ 45. Kd2 R1b2+ 46. Ke1 Rb1+ 47. Kd2 R1b2+ $11) 42... Rb1 {[%emt 0:00:07]} ({Black should play} 42... Rh8 $1 $14) 43. Rxa5 $16 {[%emt 0:00:06]} Rc1+ {[%emt 0:00:08]} 44. Rc2 {[%emt 0:00:09]} Rg1 {[%emt 0:00:03]} (44... Rcb1 $16 {keeps fighting.}) 45. g3 {[%emt 0:00:02]} (45. Ra6 $18 {and White stays clearly on top.}) 45... f4 {[%emt 0:00:02]} 46. gxf4 {[%emt 0:00:08]} Rg4 {[%emt 0:00:01]} 47. Ra6 {[%emt 0:00:02]} Rc8 {[%emt 0:00:03]} (47... Rxf4 $14 48. Rd2 (48. Rxc6 Rf3+ 49. Kd2 Rxf2+ 50. Kc1 Rf1+ 51. Kd2 Rf2+ 52. Kc3 Rf3+ 53. Kd2 Rf2+ $11) 48... Rf3+ 49. Kc2 Rc8) 48. f5 {[%emt 0:00:06]} gxf5 {[%emt 0:00:02]} 49. Ra5 {[%emt 0:00:04]} (49. h5 $16) 49... Kf6 {[%emt 0:00:02]} (49... Rxh4 $14 50. Rxf5 Ra8) 50. Re2 {[%emt 0:00:04]} Rxh4 {[%emt 0:00:02]} 51. Ree5 {[%emt 0:00:02]} (51. Rc5 $16) 51... Rf4 $11 {[%emt 0:00:02] Inhibits d5.} 52. Rec5 {[%emt 0:00:07]} Rf3+ {[%emt 0:00:05]} 53. Kd2 {[%emt 0:00:03]} Rxf2+ {[%emt 0:00:01]} 54. Ke3 {[%emt 0:00:01][%mdl 64] Deflection} Rh2 {[%emt 0:00:14]} 55. Rxf5+ {[%emt 0:00:03]} Kg6 {[%emt 0:00:08]} 56. Rg5+ {[%emt 0:00:14]} Kf6 {[%emt 0:00:01]} 57. Rgf5+ {[%emt 0:00:01]} Kg6 {[%emt 0:00:02]} 58. Rg5+ {[%emt 0:00:02]} Kf6 {[%emt 0:00:06]} 59. Rgf5+ {[%emt 0:00:01]} Kg7 {[%emt 0:00:02]} 60. Rac5 {[%emt 0:00:14]} Re8+ {[%emt 0:00:05]} 61. Kf3 {[%emt 0:00:05]} Re6 {[%emt 0:00:03]} 62. Rg5+ {[%emt 0:00:05]} Kf8 {[%emt 0:00:02]} 63. d5 {[%emt 0:00:05]} cxd5 {[%emt 0:00:04]} 64. Rgxd5 {[%emt 0:00:02]} Rh3+ {[%emt 0:00:06]} 65. Kf4 {[%emt 0:00:04]} Rh4+ {[%emt 0:00:01]} 66. Kf3 {[%emt 0:00:01]} Rh3+ {[%emt 0:00:04]} 67. Kf4 {[%emt 0:00:02]} Rh4+ {[%emt 0:00:09]} 68. Kf3 {[%emt 0:00:04]} Ree4 {[%emt 0:00:12]} 69. Rc8+ {[%emt 0:00:19]} Kg7 {[%emt 0:00:09]} 70. c5 {[%emt 0:00:01]} Ra4 {[%emt 0:00:02]} 71. Kg3 {[%emt 0:00:13]} Rhc4 {[%emt 0:00:03] And now ...Ra3+ would win.} 72. Rd3 {[%emt 0:00:11] Prevents Ra3.} Ra5 {[%emt 0:00:05]} 73. c6 {[%emt 0:00:01]} (73. Kf3 {simplifies} Raxc5 74. Rxc5 Rxc5 75. Rd4) 73... Rac5 {[%emt 0:00:02]} 74. Rf3 {[%emt 0:00:03]} Rxc6 {[%emt 0:00:02]} 75. Rxc6 {[%emt 0:00:03]} Rxc6 {[%emt 0:00:01] KR-KR} 76. Ra3 {[%emt 0:00:03]} Kg6 {[%emt 0:00:05]} 77. Kg4 {[%emt 0:00:01]} Rc4+ {[%emt 0:00:01]} 78. Kg3 {[%emt 0:00:01]} Kg5 {[%emt 0:00:05]} 79. Ra5+ $1 {[%emt 0:00:01]} f5 {[%emt 0:00:04]} 80. Ra8 {[%emt 0:00:02]} Rc3+ {[%emt 0:00:01]} 81. Kg2 $1 {[%emt 0:00:03]} Kg4 {[%emt 0:00:01]} 82. Rg8+ {[%emt 0:00:02]} Kf4 {[%emt 0:00:01]} 83. Rf8 {[%emt 0:00:07]} Rc2+ {[%emt 0:00:06]} 84. Kf1 {[%emt 0:00:03]} Ke4 {[%emt 0:00:05]} 85. Ke1 {[%emt 0:00:09]} ({Of course not} 85. Re8+ Kf3 86. Kg1 Rc1+ 87. Kh2 f4 $17) (85. Ra8 $11) 85... f4 $17 {[%emt 0:00:13] ( -> ...Kf3). Black is more active.} 86. Re8+ $2 {[%emt 0:00:12][%mdl 8192] [#]} (86. Kf1 $17) 86... Kf3 $1 {[%emt 0:00:02]} 87. Rf8 {[%emt 0:00:02]} Rc1+ {[%emt 0:00:19]} 88. Kd2 {[%emt 0:00:01]} Ra1 {[%emt 0:00:08]} 89. Rf7 {[%emt 0:00:03]} Kg3 $2 {[%emt 0:00:08]} (89... Rf1 {mates} 90. Rf8 Kg2 91. Rg8+ Kf2 92. Rf8 f3 93. Kc3 Rg1 94. Kd4 Kg2 95. Ke3 Re1+ 96. Kf4 f2 97. Rg8+ Kf1 98. Kf3 Ra1 99. Rc8 Rd1 100. Rf8 Rd3+ 101. Ke4 Ra3 102. Kd4 Ke1 103. Re8+ Kd2 104. Rf8 Ke1 105. Re8+ Kd2 106. Rf8 Ke1) 90. Rg7+ $2 {[%emt 0:00:01][%mdl 8192]} (90. Ke2 $17) 90... Kf2 {[%emt 0:00:01] Black mates.} 91. Rf7 {[%emt 0:00:09]} f3 {[%emt 0:00:08]} 92. Rf6 {[%emt 0:00:22]} Ra8 {[%emt 0:00:12]} 93. Kd3 {[%emt 0:00:01]} Rd8+ {[%emt 0:00:15]} 94. Ke4 {[%emt 0:00:05]} Re8+ {[%emt 0:00:00]} 95. Kf4 {[%emt 0:00:11]} Ke2 {[%emt 0:00:07]} 96. Kg3 {[%emt 0:00:05]} Rg8+ {[%emt 0:00:05]} 97. Kf4 {[%emt 0:00:14]} f2 {[%emt 0:00:03]} 98. Re6+ {[%emt 0:00:02]} Kd2 {[%emt 0:00:11]} 99. Rd6+ {[%emt 0:00:01]} Kc2 {[%emt 0:00:07]} 100. Rc6+ {[%emt 0:00:01]} Kb3 {[%emt 0:00:06]} 101. Rb6+ {[%emt 0:00:01]} Ka4 {[%emt 0:00:04]} 102. Ra6+ {[%emt 0:00:04]} Kb5 {[%emt 0:00:01]} 103. Ra1 {[%emt 0:00:01]} Rg1 {[%emt 0:00:01]} 104. Ra5+ {[%emt 0:00:31] Black used his chance.   Weighted Error Value: White=0.19 (very precise) /Black=0.21 (precise)} 0-1

[Event "Romanian Rapid Open 2022"]
[Site "Sebes"]
[Date "2022.12.02"]
[Round "6.36"]
[White "Stefan, Iulia-Cristiana"]
[Black "Jiros, Doru"]
[Result "1-0"]
[ECO "B24"]
[WhiteElo "1662"]
[BlackElo "1936"]
[Annotator "TA"]
[PlyCount "44"]
[EventDate "2022.12.02"]
[EventType "rapid"]
[EventCountry "ROU"]
[SourceTitle "playchess.com"]
[Source "ChessBase"]
[SourceQuality "1"]
[TimeControl "600+5"]

{[%evp 9,44,4,17,12,2,0,10,16,54,48,47,29,37,19,50,34,33,19,236,231,233,240,232,222,238,222,220,226,263,235,227,234,1214,1200,1346,1302,29999]} 1. e4 {[%emt 0:00:04]} c5 {[%emt 0:00:02]} 2. Nc3 {[%emt 0:00:01]} Nc6 {[%emt 0:00:03]} 3. g3 {[%emt 0:00:02]} d6 {[%emt 0:00:04]} 4. Bg2 {[%emt 0:00:02]} Nf6 {[%emt 0:00:04]} 5. d3 {[%emt 0:00:02]} e5 {[%emt 0:00:13]} 6. Nh3 {[%emt 0:00:06] B24: Closed Sicilian: 3 g3 sidelines.} Be7 {[%emt 0:00:02]} 7. O-O {[%emt 0:00:03]} O-O {[%emt 0:00:04]} 8. f4 {[%emt 0:00:02] The position is equal.} exf4 {[%emt 0:00:11]} 9. Nxf4 {[%emt 0:00:11] [#]} Bd7 $146 {[%emt 0:00:17]} ({Predecessor:} 9... Nd4 10. h3 Ne6 11. Be3 Nxf4 12. gxf4 Ne8 13. Nd5 Nc7 14. Nxe7+ Qxe7 15. f5 f6 {1-0 (36) Leniart,A (2423)-Mrvova,A (2262) Banska Stiavnica 2010}) 10. Ncd5 {[%emt 0:00:20]} b5 {[%emt 0:00:49]} 11. c3 {[%emt 0:00:18][%cal Bc2c3,Bc3d4][%mdl 32]} a5 {[%emt 0:01:02]} 12. Nxf6+ {[%emt 0:00:41]} Bxf6 {[%emt 0:00:26]} 13. Nd5 {[%emt 0:00:06] [#] Black must now prevent Nxf6+.} Ne5 $2 {[%emt 0:00:12] Loses the game.} (13... Bg5 $11 {and Black is okay.}) 14. Nxf6+ {[%emt 0:00:11]} gxf6 {[%emt 0:00:07]} 15. d4 {[%emt 0:01:01]} cxd4 {[%emt 0:00:16]} 16. cxd4 {[%emt 0:00:27]} Ng6 {[%emt 0:00:06]} 17. Bh6 {[%emt 0:00:39]} Re8 {[%emt 0:00:36]} 18. Qf3 {[%emt 0:02:01]} Rc8 {[%emt 0:00:17]} 19. h4 {[%emt 0:02:21] Inhibits d5.} Rc2 {[%emt 0:00:06]} 20. Rf2 {[%emt 0:00:14] Prevents d5.} Rc1+ {[%emt 0:00:07]} (20... Rxf2 21. Qxf2 (21. Kxf2 Bc6 $16) 21... Bg4) 21. Rxc1 $18 {[%emt 0:00:06]} Qe7 {[%emt 0:00:34]} 22. Qxf6 {[%emt 0:00:10][%csl Gh6][%cal Rf6g7] [#]} Qd8 {[%emt 0:06:17] Weighted Error Value: White=0.08 (flawless) /Black=0.37} 1-0

[Event "Romanian Rapid Open 2022"]
[Site "Sebes"]
[Date "2022.12.02"]
[Round "6.37"]
[White "Apostu, Rares-Stefan"]
[Black "Dima, Ioan-Radu"]
[Result "1/2-1/2"]
[ECO "C42"]
[WhiteElo "1331"]
[BlackElo "1819"]
[Annotator "NA RC COMBH"]
[PlyCount "204"]
[EventDate "2022.12.02"]
[EventType "rapid"]
[EventCountry "ROU"]
[SourceTitle "playchess.com"]
[Source "ChessBase"]
[SourceQuality "1"]
[TimeControl "600+5"]

1. e4 {[%emt 0:00:01]} e5 {[%emt 0:00:09]} 2. Nf3 {[%emt 0:00:02]} Nf6 {[%emt 0:00:01]} 3. Nxe5 {[%emt 0:00:05]} d6 {[%emt 0:00:01]} 4. Nf3 {[%emt 0:00:02]} Nxe4 {[%emt 0:00:02]} 5. d4 {[%emt 0:00:03]} d5 {[%emt 0:00:01]} 6. Bd3 {[%emt 0:00:02]} Be7 {[%emt 0:00:03]} 7. O-O {[%emt 0:00:06]} O-O {[%emt 0:00:03]} 8. c4 {[%emt 0:00:01]} Nf6 {[%emt 0:00:02]} 9. Nc3 {[%emt 0:00:03]} c6 {[%emt 0:00:01]} 10. Re1 {[%emt 0:00:04]} Nbd7 {[%emt 0:00:08]} 11. Qc2 {[%emt 0:00:19]} dxc4 {[%emt 0:00:05]} 12. Bxc4 {[%emt 0:00:02]} Nb6 {[%emt 0:00:01]} 13. Bd3 {[%emt 0:00:02]} h6 {[%emt 0:00:43]} 14. Bd2 {[%emt 0:00:12]} Nbd5 {[%emt 0:00:02]} 15. Nxd5 {[%emt 0:00:11]} Nxd5 {[%emt 0:00:01]} 16. Ne5 {[%emt 0:00:37]} Nb4 {[%emt 0:00:29]} 17. Bxb4 {[%emt 0:00:10]} Bxb4 {[%emt 0:00:01]} 18. Re3 {[%emt 0:00:02]} Be6 {[%emt 0:01:36]} 19. Rd1 {[%emt 0:00:28]} Bd6 {[%emt 0:01:12]} 20. Rg3 {[%emt 0:00:55]} Kh8 {[%emt 0:04:38]} 21. Bh7 {[%emt 0:00:43]} Bxe5 {[%emt 0:00:17]} 22. dxe5 {[%emt 0:00:06]} Qa5 {[%emt 0:00:22]} 23. Qe4 {[%emt 0:00:32]} Rad8 {[%emt 0:00:21]} 24. Rf1 {[%emt 0:00:11]} Qd5 {[%emt 0:00:48]} 25. a3 {[%emt 0:00:50]} Qxe4 {[%emt 0:00:02]} 26. Bxe4 {[%emt 0:00:02]} Rd2 {[%emt 0:00:01]} 27. b4 {[%emt 0:00:04]} Re2 {[%emt 0:00:07]} 28. Bd3 {[%emt 0:00:09]} Rxe5 {[%emt 0:00:04]} 29. f4 {[%emt 0:00:03]} Rd5 {[%emt 0:00:12]} 30. f5 {[%emt 0:00:04]} Bc8 {[%emt 0:00:21]} 31. f6 {[%emt 0:00:08]} g6 {[%emt 0:00:01]} 32. Bc4 {[%emt 0:00:20]} Rd4 {[%emt 0:00:10]} 33. Bb3 {[%emt 0:00:04]} Bf5 {[%emt 0:00:07]} 34. Re3 {[%emt 0:01:17]} Rd6 {[%emt 0:00:22]} 35. Re7 {[%emt 0:00:12]} Be6 {[%emt 0:00:14]} 36. Bxe6 {[%emt 0:00:33]} Rxe6 {[%emt 0:00:02]} 37. Rxb7 {[%emt 0:00:03]} a5 {[%emt 0:00:04]} 38. Re7 {[%emt 0:00:30]} axb4 {[%emt 0:00:05]} 39. axb4 {[%emt 0:00:03]} Kg8 {[%emt 0:00:05]} 40. Rf3 {[%emt 0:01:01]} Rxe7 {[%emt 0:00:09]} 41. fxe7 {[%emt 0:00:06]} Re8 {[%emt 0:00:01]} 42. Rc3 {[%emt 0:00:03]} Rxe7 {[%emt 0:00:05]} 43. Rxc6 {[%emt 0:00:03]} Rb7 {[%emt 0:00:09]} 44. Rc4 {[%emt 0:00:02]} Kg7 {[%emt 0:00:06]} 45. Kf2 {[%emt 0:00:01]} Kf6 {[%emt 0:00:01]} 46. Ke3 {[%emt 0:00:03]} Ke5 {[%emt 0:00:01]} 47. Kd3 {[%emt 0:00:10]} f5 {[%emt 0:00:08]} 48. Kc3 {[%emt 0:00:09]} g5 {[%emt 0:00:10]} 49. Kd3 {[%emt 0:00:12]} Rd7+ {[%emt 0:00:05]} 50. Ke3 {[%emt 0:00:16]} f4+ {[%emt 0:00:01]} 51. Kf3 {[%emt 0:00:02]} Rb7 {[%emt 0:00:04]} 52. g3 {[%emt 0:00:21]} fxg3 {[%emt 0:00:07]} 53. hxg3 {[%emt 0:00:03]} Kd5 {[%emt 0:00:09]} 54. Re4 {[%emt 0:00:17]} h5 {[%emt 0:00:05]} 55. Re8 {[%emt 0:01:38]} Rxb4 {[%emt 0:00:05]} 56. Rg8 {[%emt 0:00:04]} Rg4 {[%emt 0:00:08]} 57. Rh8 {[%emt 0:00:04]} Ke5 {[%emt 0:00:04]} 58. Rxh5 {[%emt 0:00:04]} Kf5 {[%emt 0:00:04]} 59. Rh8 {[%emt 0:00:05]} Rb4 {[%emt 0:00:01]} 60. Rf8+ {[%emt 0:00:01]} Kg6 {[%emt 0:00:02]} 61. Rg8+ {[%emt 0:00:03]} Kf6 {[%emt 0:00:03]} 62. Rc8 {[%emt 0:00:09]} g4+ {[%emt 0:00:05]} 63. Ke3 {[%emt 0:00:05]} Ke5 {[%emt 0:00:05]} 64. Rc5+ {[%emt 0:00:04]} Kf6 {[%emt 0:00:12]} 65. Rd5 {[%emt 0:00:11]} Ke6 {[%emt 0:00:06]} 66. Rd8 {[%emt 0:00:13]} Ke5 {[%emt 0:00:06]} 67. Re8+ {[%emt 0:00:01]} Kf5 {[%emt 0:00:02]} 68. Rd8 {[%emt 0:00:20]} Re4+ {[%emt 0:00:09]} 69. Kd3 {[%emt 0:00:13]} Re1 {[%emt 0:00:01]} 70. Rf8+ {[%emt 0:00:02]} Kg5 {[%emt 0:00:01]} 71. Rg8+ {[%emt 0:00:03]} Kf5 {[%emt 0:00:03]} 72. Rf8+ {[%emt 0:00:01]} Kg5 {[%emt 0:00:03]} 73. Rg8+ {[%emt 0:00:19]} Kh5 {[%emt 0:00:06]} 74. Rh8+ {[%emt 0:00:17]} Kg6 {[%emt 0:00:04]} 75. Rg8+ {[%emt 0:00:00]} Kf5 {[%emt 0:00:03]} 76. Rf8+ {[%emt 0:00:02]} Kg6 {[%emt 0:00:01]} 77. Rf4 {[%emt 0:00:04]} Kg5 {[%emt 0:00:07]} 78. Re4 {[%emt 0:00:02]} Rf1 {[%emt 0:00:19]} 79. Re5+ {[%emt 0:00:06]} Kf6 {[%emt 0:00:00]} 80. Re3 {[%emt 0:00:05]} Kf5 {[%emt 0:00:05]} 81. Ke2 {[%emt 0:00:08]} Ra1 {[%emt 0:00:06]} 82. Kd3 {[%emt 0:00:13]} Rg1 {[%emt 0:00:08]} 83. Kd4 {[%emt 0:00:07]} Rd1+ {[%emt 0:00:08]} 84. Kc3 {[%emt 0:00:01]} Rf1 {[%emt 0:00:01]} 85. Kd3 {[%emt 0:00:02]} Ra1 {[%emt 0:00:06]} 86. Kd4 {[%emt 0:00:05]} Rd1+ {[%emt 0:00:04]} 87. Rd3 {[%emt 0:00:02]} Rf1 {[%emt 0:00:02]} 88. Ke3 {[%emt 0:00:07]} Rh1 {[%emt 0:00:11]} 89. Rd5+ {[%emt 0:00:02]} Ke6 {[%emt 0:00:04]} 90. Rg5 {[%emt 0:00:03]} Rc1 {[%emt 0:00:06]} 91. Rxg4 {[%emt 0:00:05]} Kf5 {[%emt 0:00:00]} 92. Rf4+ {[%emt 0:00:02]} Kg5 {[%emt 0:00:01]} 93. Ke4 {[%emt 0:00:10]} Rc4+ {[%emt 0:00:02]} 94. Ke5 {[%emt 0:00:02]} Rc3 {[%emt 0:00:05]} 95. Rf8 {[%emt 0:00:15]} Re3+ {[%emt 0:00:07]} 96. Kd4 {[%emt 0:00:09]} Re7 {[%emt 0:00:13]} 97. Rg8+ {[%emt 0:00:01]} Kf5 {[%emt 0:00:01]} 98. g4+ {[%emt 0:00:01]} Kf6 {[%emt 0:00:02]} 99. g5+ {[%emt 0:00:06]} Kf7 {[%emt 0:00:02]} 100. Rh8 {[%emt 0:00:04]} Kg6 {[%emt 0:00:01]} 101. Rg8+ {[%emt 0:00:03]} Kf7 {[%emt 0:00:01]} 102. Ra8 {[%emt 0:00:08]} Kg6 {[%emt 0:00:34]} 1/2-1/2

[Event "Romanian Rapid Open 2022"]
[Site "Sebes"]
[Date "2022.12.02"]
[Round "6.38"]
[White "Cordea, David"]
[Black "Butuza, Stefan Aurelian"]
[Result "1-0"]
[ECO "D02"]
[WhiteElo "2049"]
[BlackElo "1529"]
[Annotator "TA"]
[PlyCount "89"]
[EventDate "2022.12.02"]
[EventType "rapid"]
[EventCountry "ROU"]
[SourceTitle "playchess.com"]
[Source "ChessBase"]
[SourceQuality "1"]
[TimeControl "600+5"]

{[%evp 10,89,14,-9,12,0,9,0,0,-14,0,0,8,-4,23,22,23,22,23,18,30,30,29,34,34,8,9,8,100,35,21,-44,50,35,29,26,110,25,40,14,16,6,182,164,167,145,175,152,146,119,256,251,312,285,316,209,362,268,727,672,715,639,1688,1496,1683,1658,1033,1515,1529,1406,12838,12839,12838,12839,12838,12839,12837,12834,2337,2023,29989,29990]} 1. Nf3 {[%emt 0:00:03]} d5 {[%emt 0:00:05]} 2. d4 {[%emt 0:00:03]} e6 {[%emt 0:00:02]} 3. g3 {[%emt 0:00:02]} c5 {[%emt 0:00:01]} 4. Bg2 {[%emt 0:00:01]} Nf6 {[%emt 0:00:00]} 5. O-O {[%emt 0:10:21]} Nc6 {[%emt 0:10:22]} 6. b3 {[%emt 0:00:00]} Be7 {[%emt 0:00:00] D02: 1 d4 d5 2 Nf3 sidelines, including 2...Nf6 3 g3 and 2...Nf6 3 Bf4.} 7. dxc5 {[%emt 0:00:00]} Bxc5 {[%emt 0:00:00]} 8. Bb2 {[%emt 0:00:00] Against e5} O-O {[%emt 0:00:00] The position is equal.} 9. Nbd2 {[%emt 0:00:00]} b6 {[%emt 0:00:00]} 10. e3 {[%emt 0:00:00]} Bb7 {[%emt 0:00:00]} 11. c4 {[%emt 0:00:00]} dxc4 {[%emt 0:00:00]} 12. Nxc4 {[%emt 0:00:00] [#]} Qxd1 $146 {[%emt 0:00:00]} ({Predecessor:} 12... b5 13. Nce5 Nxe5 14. Nxe5 Bxg2 15. Kxg2 Rc8 16. Rc1 Qa5 17. Ng4 Be7 18. Qf3 Qxa2 19. Rxc8 Rxc8 {½-½ (72) Li,D (2390)-Xu,Y (2387) Beijing 2019}) 13. Rfxd1 {[%emt 0:00:00]} Rad8 {[%emt 0:00:00]} 14. Nfe5 {[%emt 0:00:00]} Nxe5 {[%emt 0:00:00]} 15. Nxe5 {[%emt 0:00:00]} Bxg2 {[%emt 0:00:00]} 16. Kxg2 {[%emt 0:00:00]} h6 {[%emt 0:00:00]} 17. Nc6 {[%emt 0:00:00]} Rxd1 {[%emt 0:00:00]} 18. Rxd1 {[%emt 0:00:00] Hoping for Bxf6.} a5 {[%emt 0:00:00]} (18... Rc8 $1 $11 19. Rd8+ (19. Nxa7 Ra8 $11) 19... Rxd8 20. Nxd8 a5) 19. a4 {[%emt 0:00:00]} (19. Bxf6 $16 gxf6 20. Rd7) 19... Rc8 $14 {[%emt 0:00:00]} 20. Ne5 {[%emt 0:00:00] [#]} ({White should try} 20. Na7 $11 Re8 21. Kf3) 20... Kf8 {[%emt 0:00:00]} ({Better is} 20... Bxe3 $1 $15 21. Nc4 Bc5) 21. Nc4 {[%emt 0:00:00]} Ke7 {[%emt 0:00:00]} 22. Kf3 {[%emt 0:00:00]} g6 {[%emt 0:00:00]} (22... Ne8 $11 {remains equal.}) 23. Ke2 {[%emt 0:00:00] White is more active.} (23. Bxf6+ $1 $16 Kxf6 24. Rd7) 23... Nd5 {[%emt 0:00:00]} 24. e4 {[%emt 0:00:00]} Nb4 {[%emt 0:00:00]} 25. Ba3 {[%emt 0:00:00]} Rd8 $2 {[%emt 0:00:00]} (25... g5 $11) 26. Rxd8 $18 {[%emt 0:00:00]} Kxd8 {[%emt 0:00:00]} 27. Bxb4 {[%emt 0:00:00]} axb4 {[%emt 0:00:00][%mdl 4096] Endgame KB-KN} 28. f3 {[%emt 0:00:00]} Ke7 {[%emt 0:00:00]} 29. Kd3 {[%emt 0:00:00]} f6 {[%emt 0:00:02] [#]} (29... h5 $16 {was worth a try.}) 30. Nb2 $1 {[%emt 0:00:00]} Kd6 {[%emt 0:00:11] [#]} 31. Kc4 $1 {[%emt 0:00:00]} Kc6 {[%emt 0:00:34]} 32. Nd3 {[%emt 0:00:00][%cal Od3c5] And now Nxc5! would win.} Be7 {[%emt 0:00:05]} (32... Bg1) 33. g4 {[%emt 0:00:00]} ({Less strong is} 33. Nxb4+ Kc7 34. Nd3 g5 $18) 33... f5 $2 {[%emt 0:00:40]} (33... Bd6 34. Nxb4+ Kd7) 34. Ne5+ {[%emt 0:00:00]} Kc7 {[%emt 0:00:26]} 35. Nxg6 {[%emt 0:00:00]} Bd6 {[%emt 0:00:09]} 36. e5 {[%emt 0:00:00]} Bc5 {[%emt 0:00:28]} 37. Nf4 {[%emt 0:00:00]} Kd7 {[%emt 0:00:00]} 38. gxf5 {[%emt 0:00:00]} exf5 {[%emt 0:00:00]} 39. Kd5 {[%emt 0:00:00]} Ke7 {[%emt 0:00:09]} 40. Nd3 {[%emt 0:00:00]} Bg1 {[%emt 0:00:03]} 41. h3 {[%emt 0:00:00]} Kf7 {[%emt 0:00:06]} 42. Nxb4 {[%emt 0:00:00]} h5 {[%emt 0:00:02]} 43. e6+ {[%emt 0:00:00][%cal Be5e6,Be6e7][%mdl 32]} Kf6 {[%emt 0:00:03]} 44. Nd3 {[%emt 0:00:00] Threatening mate with Kd6.} Kg5 {[%emt 0:00:11]} 45. e7 {[%emt 0:00:00] Weighted Error Value: White=0.20 (precise) /Black=0.66} 1-0